[Event "36th German Seniors-ch-65 2024"]
[Site "Bad Wildungen"]
[Date "2024.08.30"]
[Round "8.8"]
[White "Dekan, Hans"]
[Black "Brueggemann, Joachim"]
[Result "0-1"]
[ECO "B01"]
[WhiteElo "2079"]
[BlackElo "2267"]
[Annotator "RC"]
[PlyCount "64"]
[EventDate "2024.08.22"]
[EventType "swiss"]
[EventCountry "GER"]
[SourceTitle "playchess.com"]
[Source "ChessBase"]
[SourceQuality "1"]
[TimeControl "40/5400+30:1800+30"]

1. e4 {[%emt 0:00:04]} d5 {[%emt 0:00:26]} 2. exd5 {[%emt 0:00:32]} Qxd5 {[%emt 0:00:08]} 3. Nc3 {[%emt 0:00:19]} Qa5 {[%emt 0:00:06]} 4. Bc4 {[%emt 0:00:35]} Nf6 {[%emt 0:00:06]} 5. h3 {[%emt 0:03:08]} a6 {[%emt 0:01:45]} 6. d3 {[%emt 0:08:26]} b5 {[%emt 0:01:25]} 7. Bb3 {[%emt 0:00:05]} Bb7 {[%emt 0:00:13]} 8. Nf3 {[%emt 0:00:07]} e6 {[%emt 0:01:30]} 9. Qe2 {[%emt 0:03:13]} Nbd7 {[%emt 0:00:53]} 10. O-O {[%emt 0:03:44]} Be7 {[%emt 0:03:13]} 11. Re1 {[%emt 0:00:39]} Qb6 {[%emt 0:04:57]} 12. d4 {[%emt 0:03:42]} c5 {[%emt 0:10:29]} 13. dxc5 {[%emt 0:03:40]} Nxc5 {[%emt 0:06:23]} 14. Be3 {[%emt 0:01:34]} Qc6 {[%emt 0:02:32]} 15. Rad1 {[%emt 0:01:31]} O-O {[%emt 0:00:57]} 16. Rd2 {[%emt 0:15:38]} Rac8 {[%emt 0:01:01]} 17. Red1 {[%emt 0:03:09]} Na4 {[%emt 0:09:33]} 18. Bxa4 {[%emt 0:01:46]} bxa4 {[%emt 0:00:02]} 19. a3 {[%emt 0:00:17]} Bxa3 {[%emt 0:10:32]} 20. bxa3 {[%emt 0:23:50]} Qxc3 {[%emt 0:00:13]} 21. Rb1 {[%emt 0:02:53]} Bxf3 {[%emt 0:06:30]} 22. gxf3 {[%emt 0:05:32]} Qc4 {[%emt 0:03:07]} 23. Rb4 {[%emt 0:01:13]} Qxe2 {[%emt 0:00:47]} 24. Rxe2 {[%emt 0:00:04]} Nd5 {[%emt 0:00:12]} 25. Rg4 {[%emt 0:03:37]} f5 {[%emt 0:08:01]} 26. Rd4 {[%emt 0:05:03]} Rc6 {[%emt 0:12:03]} 27. Bd2 {[%emt 0:02:51]} Rb8 {[%emt 0:00:34]} 28. Rxa4 {[%emt 0:02:39]} Rb1+ {[%emt 0:01:48]} 29. Re1 {[%emt 0:01:29]} Rb2 {[%emt 0:02:19]} 30. Rc1 {[%emt 0:02:51]} Kf7 {[%emt 0:00:06]} 31. Be3 {[%emt 0:01:00]} Nc3 {[%emt 0:00:39]} 32. Bd4 {[%emt 0:00:33]} Nxa4 {[%emt 0:00:09]} 0-1

[Event "36th German Seniors-ch-65 2024"]
[Site "Bad Wildungen"]
[Date "2024.08.30"]
[Round "8.9"]
[White "Rosen, Willy"]
[Black "Nehmert, Ulrich"]
[Result "1/2-1/2"]
[ECO "C44"]
[WhiteElo "2091"]
[BlackElo "2255"]
[Annotator "RC"]
[PlyCount "22"]
[EventDate "2024.08.22"]
[EventType "swiss"]
[EventCountry "GER"]
[SourceTitle "playchess.com"]
[Source "ChessBase"]
[SourceQuality "1"]
[TimeControl "40/5400+30:1800+30"]

1. e4 {[%emt 0:00:02]} e5 {[%emt 0:00:08]} 2. Nf3 {[%emt 0:00:08]} Nc6 {[%emt 0:00:09]} 3. d3 {[%emt 0:00:08]} Nf6 {[%emt 0:00:32]} 4. c3 {[%emt 0:00:13]} h6 {[%emt 0:00:23]} 5. Nbd2 {[%emt 0:05:00]} d5 {[%emt 0:03:22]} 6. Qc2 {[%emt 0:01:25]} a5 {[%emt 0:02:17]} 7. exd5 {[%emt 0:09:39]} Nxd5 {[%emt 0:00:28]} 8. Nc4 {[%emt 0:00:11]} Bd6 {[%emt 0:06:56]} 9. g3 {[%emt 0:02:38]} O-O {[%emt 0:05:41]} 10. Bg2 {[%emt 0:00:09]} Re8 {[%emt 0:08:05]} 11. O-O {[%emt 0:00:31]} Nf6 {[%emt 0:00:45]} 1/2-1/2

[Event "36th German Seniors-ch-65 2024"]
[Site "Bad Wildungen"]
[Date "2024.08.30"]
[Round "8.10"]
[White "Koehler, Gerhard"]
[Black "Lutz, Albert"]
[Result "1-0"]
[ECO "E98"]
[WhiteElo "2210"]
[BlackElo "2070"]
[Annotator "RC"]
[PlyCount "85"]
[EventDate "2024.08.22"]
[EventType "swiss"]
[EventCountry "GER"]
[SourceTitle "playchess.com"]
[Source "ChessBase"]
[SourceQuality "1"]
[TimeControl "40/5400+30:1800+30"]

1. c4 {[%emt 0:00:03]} Nf6 {[%emt 0:00:11]} 2. Nc3 {[%emt 0:00:09]} g6 {[%emt 0:00:46]} 3. e4 {[%emt 0:00:17]} d6 {[%emt 0:00:09]} 4. d4 {[%emt 0:00:09]} Bg7 {[%emt 0:00:10]} 5. Be2 {[%emt 0:00:09]} O-O {[%emt 0:00:10]} 6. Nf3 {[%emt 0:00:08]} e5 {[%emt 0:00:21]} 7. O-O {[%emt 0:00:15]} Nc6 {[%emt 0:00:11]} 8. d5 {[%emt 0:00:25]} Ne7 {[%emt 0:00:14]} 9. Ne1 {[%emt 0:00:25]} Nd7 {[%emt 0:00:24]} 10. Be3 {[%emt 0:00:32]} b6 {[%emt 0:00:49]} 11. b4 {[%emt 0:00:56]} f5 {[%emt 0:00:12]} 12. f3 {[%emt 0:00:03]} f4 {[%emt 0:02:02]} 13. Bf2 {[%emt 0:00:16]} Rf7 {[%emt 0:02:59]} 14. Nd3 {[%emt 0:01:10]} g5 {[%emt 0:00:57]} 15. Rc1 {[%emt 0:02:44]} Nf6 {[%emt 0:00:27]} 16. c5 {[%emt 0:00:14]} h5 {[%emt 0:03:01]} 17. Nb5 {[%emt 0:06:50]} Ng6 {[%emt 0:01:30]} 18. cxd6 {[%emt 0:02:03]} cxd6 {[%emt 0:00:32]} 19. Qc2 {[%emt 0:03:04]} Ne8 {[%emt 0:04:29]} 20. Qd1 {[%emt 0:12:48]} Bd7 {[%emt 0:00:43]} 21. a4 {[%emt 0:00:25]} Bf8 {[%emt 1:20:43]} 22. Nb2 {[%emt 0:02:09]} Rg7 {[%emt 0:00:00]} 23. Kh1 {[%emt 1:06:46]} Bc8 {[%emt 0:00:00]} 24. Rc3 Qd7 {[%emt 0:00:00]} 25. Qc2 Ba6 {[%emt 0:00:00]} 26. Rc1 g4 {[%emt 0:00:00]} 27. Qd1 g3 {[%emt 0:00:00]} 28. Bg1 {[%emt 0:00:00]} gxh2 29. Bxh2 Be7 {[%emt 0:00:00]} 30. Nc7 {[%emt 0:00:00]} Bxe2 {[%emt 0:00:00]} 31. Qxe2 {[%emt 0:00:00]} Rc8 {[%emt 0:00:00]} 32. Ne6 {[%emt 0:00:00]} Rxc3 {[%emt 0:00:00]} 33. Rxc3 {[%emt 0:00:00]} Rh7 {[%emt 0:00:00]} 34. Qb5 {[%emt 0:00:00]} Bh4 {[%emt 0:00:00]} 35. Qxd7 {[%emt 0:00:00]} Rxd7 {[%emt 0:00:00]} 36. Bg1 {[%emt 0:00:00]} Kf7 {[%emt 0:00:00]} 37. Nd3 {[%emt 0:00:00]} Nf8 {[%emt 0:00:00]} 38. Nxf8 {[%emt 0:00:00]} Kxf8 {[%emt 0:00:00]} 39. b5 {[%emt 0:00:24]} Bg3 {[%emt 0:00:00]} 40. Rc8 {[%emt 0:03:23]} Rb7 {[%emt 0:07:19]} 41. Nb4 {[%emt 0:32:53]} Kf7 {[%emt 0:32:09]} 42. Nc6 {[%emt 0:00:34]} Nc7 {[%emt 0:00:00]} 43. Nd8+ {[%emt 0:00:00]} 1-0

[Event "36th German Seniors-ch-65 2024"]
[Site "Bad Wildungen"]
[Date "2024.08.30"]
[Round "8.11"]
[White "Wenner, Tobias"]
[Black "Babrikowski, Peter"]
[Result "1/2-1/2"]
[ECO "A34"]
[WhiteElo "2067"]
[BlackElo "2153"]
[Annotator "RC"]
[PlyCount "81"]
[EventDate "2024.08.22"]
[EventType "swiss"]
[EventCountry "GER"]
[SourceTitle "playchess.com"]
[Source "ChessBase"]
[SourceQuality "1"]
[TimeControl "40/5400+30:1800+30"]

1. Nf3 {[%emt 0:00:03]} Nf6 {[%emt 0:00:24]} 2. c4 {[%emt 0:00:05]} c5 {[%emt 0:00:26]} 3. Nc3 {[%emt 0:00:11]} d5 {[%emt 0:00:52]} 4. cxd5 {[%emt 0:00:11]} Nxd5 {[%emt 0:00:04]} 5. g3 {[%emt 0:00:17]} b6 {[%emt 1:31:14]} 6. Bg2 {[%emt 0:00:47]} Bb7 {[%emt 0:00:00]} 7. O-O {[%emt 0:01:36]} e6 {[%emt 0:00:00]} 8. Nxd5 {[%emt 0:04:28]} Qxd5 {[%emt 0:00:00]} 9. d4 {[%emt 0:06:51]} cxd4 {[%emt 0:00:00]} 10. Qxd4 {[%emt 0:00:34]} Nd7 {[%emt 0:00:00]} 11. Rd1 {[%emt 0:06:22]} Bc5 {[%emt 0:00:00]} 12. Qa4 {[%emt 0:06:23]} Qc6 {[%emt 0:00:00]} 13. Qg4 {[%emt 0:05:41]} Kf8 {[%emt 0:00:00]} 14. Ne1 {[%emt 0:01:20]} Qc8 {[%emt 0:00:00]} 15. Bxb7 {[%emt 0:02:17]} Qxb7 {[%emt 0:00:00]} 16. b4 {[%emt 0:01:22]} Be7 {[%emt 0:00:00]} 17. Bb2 {[%emt 0:02:50]} Nf6 {[%emt 0:00:00]} 18. Qc4 {[%emt 0:01:31]} Rc8 {[%emt 0:00:00]} 19. Qb3 {[%emt 0:00:12]} h5 {[%emt 0:00:00]} 20. h4 {[%emt 0:02:57]} Nd5 {[%emt 0:00:00]} 21. b5 {[%emt 0:06:24]} Bf6 {[%emt 0:00:00]} 22. Bxf6 {[%emt 0:05:39]} Nxf6 {[%emt 0:00:00]} 23. Rac1 {[%emt 0:01:38]} g6 {[%emt 0:00:00]} 24. Rxc8+ {[%emt 0:05:34]} Qxc8 {[%emt 0:00:00]} 25. Qb2 {[%emt 0:00:31]} Kg7 {[%emt 0:00:00]} 26. Rc1 {[%emt 0:01:25]} Qd7 {[%emt 0:00:00]} 27. Nd3 {[%emt 0:01:38]} Rc8 {[%emt 0:00:00]} 28. Rxc8 {[%emt 0:06:06]} Qxc8 {[%emt 0:00:00]} 29. Qe5 {[%emt 0:00:11]} Qc2 {[%emt 0:00:00]} 30. Nf4 {[%emt 0:04:33]} Qe4 {[%emt 0:00:00]} 31. Qb2 {[%emt 0:01:12]} Qf5 {[%emt 0:02:39]} 32. f3 {[%emt 0:02:06]} Qc5+ {[%emt 0:03:05]} 33. Kf1 {[%emt 0:00:44]} Qe3 {[%emt 0:00:39]} 34. Nd3 {[%emt 0:05:44]} g5 {[%emt 0:00:36]} 35. Qe5 {[%emt 0:02:37]} Qxe5 {[%emt 0:01:00]} 36. Nxe5 {[%emt 0:00:02]} gxh4 {[%emt 0:00:11]} 37. gxh4 {[%emt 0:00:07]} Nd5 {[%emt 0:00:11]} 38. Nc6 {[%emt 0:00:35]} Nc3 {[%emt 0:00:16]} 39. Nxa7 {[%emt 0:00:26]} Nxa2 {[%emt 0:01:15]} 40. Nc8 {[%emt 0:00:15]} Nc3 {[%emt 0:00:10]} 41. Nxb6 {[%emt 0:47:35]} 1/2-1/2

[Event "36th German Seniors-ch-65 2024"]
[Site "Bad Wildungen"]
[Date "2024.08.30"]
[Round "8.12"]
[White "Ruether, Rudolf"]
[Black "Polster, Wolfgang"]
[Result "0-1"]
[ECO "A81"]
[WhiteElo "2065"]
[BlackElo "2112"]
[Annotator "RC"]
[PlyCount "44"]
[EventDate "2024.08.22"]
[EventType "swiss"]
[EventCountry "GER"]
[SourceTitle "playchess.com"]
[Source "ChessBase"]
[SourceQuality "1"]
[TimeControl "40/5400+30:1800+30"]

1. d4 {[%emt 0:00:07]} c6 {[%emt 0:00:38]} 2. Nf3 {[%emt 0:00:33]} f5 {[%emt 0:01:12]} 3. g3 {[%emt 0:00:16]} g6 {[%emt 0:00:06]} 4. Bg2 {[%emt 0:00:17]} Bg7 {[%emt 0:00:06]} 5. O-O {[%emt 0:00:24]} Nf6 {[%emt 0:00:24]} 6. b3 {[%emt 0:00:35]} O-O {[%emt 0:00:23]} 7. Bb2 {[%emt 0:00:14]} a5 {[%emt 0:03:20]} 8. Nbd2 {[%emt 0:03:36]} Na6 {[%emt 0:04:14]} 9. Re1 {[%emt 0:02:05]} Ne4 {[%emt 0:00:41]} 10. e3 {[%emt 0:02:20]} d6 {[%emt 0:02:01]} 11. Nxe4 {[%emt 0:02:52]} fxe4 {[%emt 0:00:08]} 12. Nd2 {[%emt 0:00:14]} d5 {[%emt 0:00:19]} 13. f3 {[%emt 0:02:41]} exf3 {[%emt 0:01:44]} 14. Bxf3 {[%emt 0:00:12]} Nc5 {[%emt 0:09:52]} 15. e4 {[%emt 0:09:26]} Ne6 {[%emt 0:01:34]} 16. c3 {[%emt 0:08:06]} Ng5 {[%emt 0:00:57]} 17. Qe2 {[%emt 0:16:50]} e5 {[%emt 0:16:34]} 18. dxe5 {[%emt 0:08:09]} Rxf3 {[%emt 0:00:40]} 19. Nxf3 {[%emt 0:04:49]} Bg4 {[%emt 0:00:18]} 20. Rf1 {[%emt 0:09:33]} Qb6+ {[%emt 0:00:44]} 21. Kg2 {[%emt 0:03:46]} Rf8 {[%emt 0:00:31]} 22. exd5 {[%emt 0:04:20]} Rxf3 {[%emt 0:03:43]} 0-1

[Event "36th German Seniors-ch-65 2024"]
[Site "Bad Wildungen"]
[Date "2024.08.30"]
[Round "8.13"]
[White "Behrens, Harald"]
[Black "Skorna, Ullrich"]
[Result "1-0"]
[ECO "E01"]
[WhiteElo "2206"]
[BlackElo "2058"]
[Annotator "RC"]
[PlyCount "91"]
[EventDate "2024.08.22"]
[EventType "swiss"]
[EventCountry "GER"]
[SourceTitle "playchess.com"]
[Source "ChessBase"]
[SourceQuality "1"]
[TimeControl "40/5400+30:1800+30"]

1. d4 {[%emt 0:00:05]} e6 {[%emt 0:00:31]} 2. Nf3 {[%emt 0:00:07]} d5 {[%emt 0:00:20]} 3. g3 {[%emt 0:00:07]} Nf6 {[%emt 0:00:06]} 4. Bg2 {[%emt 0:00:06]} Bd6 {[%emt 0:00:14]} 5. c4 {[%emt 0:00:13]} c6 {[%emt 0:00:06]} 6. Qc2 {[%emt 0:00:13]} Nbd7 {[%emt 0:00:16]} 7. O-O {[%emt 0:00:09]} O-O {[%emt 0:00:13]} 8. Nbd2 {[%emt 0:00:31]} Qe7 {[%emt 0:02:11]} 9. b3 {[%emt 0:01:35]} b6 {[%emt 0:02:19]} 10. Bb2 {[%emt 0:03:43]} Bb7 {[%emt 0:00:12]} 11. e4 {[%emt 0:00:47]} dxe4 {[%emt 0:00:27]} 12. Nxe4 {[%emt 0:00:09]} Nxe4 {[%emt 0:00:52]} 13. Qxe4 {[%emt 0:00:07]} Ba3 {[%emt 0:00:45]} 14. Bxa3 {[%emt 0:02:41]} Qxa3 {[%emt 0:00:06]} 15. Ne5 {[%emt 0:00:53]} Nxe5 {[%emt 0:03:29]} 16. Qxe5 {[%emt 0:02:39]} Rac8 {[%emt 0:00:13]} 17. Rfe1 {[%emt 0:05:38]} Rfd8 {[%emt 0:02:01]} 18. Re2 {[%emt 0:11:44]} Rd7 {[%emt 0:01:49]} 19. Rd1 {[%emt 0:00:57]} Rcd8 {[%emt 0:00:54]} 20. Red2 {[%emt 0:00:25]} h6 {[%emt 0:00:58]} 21. f4 {[%emt 0:06:27]} Qd6 {[%emt 0:21:41]} 22. Qe3 {[%emt 0:01:32]} Qe7 {[%emt 0:07:15]} 23. h4 {[%emt 0:07:20]} h5 {[%emt 0:04:36]} 24. Bf3 {[%emt 0:03:34]} g6 {[%emt 0:00:07]} 25. Kg2 {[%emt 0:51:18]} Kg7 26. Kf2 {[%emt 0:00:00]} Rd6 {[%emt 0:06:40]} 27. b4 {[%emt 0:00:00]} a6 {[%emt 0:02:02]} 28. Qe5+ {[%emt 0:00:00]} f6 {[%emt 0:03:00]} 29. Qe3 {[%emt 0:00:00]} b5 {[%emt 0:07:24]} 30. c5 {[%emt 0:00:00]} R6d7 {[%emt 0:00:32]} 31. Re1 {[%emt 0:00:00]} Qf7 {[%emt 0:05:02]} 32. Bd1 {[%emt 0:00:00]} Re7 {[%emt 0:00:44]} 33. Bb3 {[%emt 0:00:00]} Rde8 {[%emt 0:01:01]} 34. Qe4 {[%emt 0:00:00]} Kh7 {[%emt 0:01:24]} 35. Rde2 {[%emt 0:00:00]} f5 {[%emt 0:00:54]} 36. Qe5 {[%emt 0:00:00]} Kh6 {[%emt 0:01:25]} 37. Kf1 {[%emt 0:00:00]} Rd8 {[%emt 0:04:45]} 38. Bxe6 {[%emt 0:00:00]} Qg7 {[%emt 0:01:00]} 39. Qxg7+ {[%emt 0:00:00]} Kxg7 {[%emt 0:00:05]} 40. Bb3 {[%emt 0:00:00]} Rxe2 {[%emt 0:01:57]} 41. Rxe2 {[%emt 0:25:53]} Kh6 {[%emt 0:33:44]} 42. Re7 {[%emt 0:01:24]} Rxd4 {[%emt 0:00:05]} 43. Rxb7 {[%emt 0:00:29]} Rxb4 {[%emt 0:00:10]} 44. Bg8 {[%emt 0:00:16]} g5 {[%emt 0:00:04]} 45. hxg5+ {[%emt 0:00:12]} Kg6 {[%emt 0:00:05]} 46. Bb3 {[%emt 0:12:16]} 1-0

[Event "36th German Seniors-ch-65 2024"]
[Site "Bad Wildungen"]
[Date "2024.08.30"]
[Round "8.14"]
[White "Gruzmann, Boris"]
[Black "Gries, Volker"]
[Result "1-0"]
[ECO "C42"]
[WhiteElo "2167"]
[BlackElo "2012"]
[Annotator "RC"]
[PlyCount "93"]
[EventDate "2024.08.22"]
[EventType "swiss"]
[EventCountry "GER"]
[SourceTitle "playchess.com"]
[Source "ChessBase"]
[SourceQuality "1"]
[TimeControl "40/5400+30:1800+30"]

1. e4 {[%emt 0:00:06]} e5 {[%emt 0:00:05]} 2. Nf3 {[%emt 0:00:19]} Nf6 {[%emt 0:00:05]} 3. Nxe5 {[%emt 0:00:32]} d6 {[%emt 0:00:04]} 4. Nf3 {[%emt 0:00:26]} Nxe4 {[%emt 0:00:09]} 5. Nc3 {[%emt 0:00:15]} Nf6 {[%emt 0:00:58]} 6. d4 {[%emt 0:00:43]} Be7 {[%emt 0:00:18]} 7. d5 {[%emt 0:06:45]} O-O {[%emt 0:02:04]} 8. Bd3 {[%emt 0:02:58]} Bg4 {[%emt 0:03:01]} 9. h3 {[%emt 0:01:17]} Bh5 {[%emt 0:02:00]} 10. g4 {[%emt 0:13:35]} Bg6 {[%emt 0:00:10]} 11. Bxg6 {[%emt 0:00:16]} hxg6 {[%emt 0:01:18]} 12. Bg5 {[%emt 0:03:43]} c6 {[%emt 0:00:28]} 13. Qd2 {[%emt 0:10:41]} Nxd5 {[%emt 0:13:33]} 14. Nxd5 {[%emt 0:00:22]} Bxg5 {[%emt 0:02:10]} 15. Qxg5 {[%emt 0:00:54]} cxd5 {[%emt 0:02:29]} 16. Qxd8 {[%emt 0:00:21]} Rxd8 {[%emt 0:00:05]} 17. O-O-O {[%emt 0:00:55]} Nd7 {[%emt 0:01:40]} 18. Rxd5 {[%emt 0:00:42]} Nb6 {[%emt 0:00:15]} 19. Rd3 {[%emt 0:04:01]} Kf8 {[%emt 0:06:16]} 20. Re1 {[%emt 0:04:21]} Rd7 {[%emt 0:02:45]} 21. Ng5 {[%emt 0:05:17]} Rad8 {[%emt 0:03:07]} 22. b3 {[%emt 0:04:03]} Nc8 {[%emt 0:02:35]} 23. Rf3 {[%emt 0:11:31]} Kg8 {[%emt 0:01:10]} 24. c4 {[%emt 0:00:39]} a6 {[%emt 0:02:54]} 25. h4 {[%emt 0:02:07]} Na7 {[%emt 0:02:15]} 26. Rfe3 {[%emt 0:04:41]} Kf8 {[%emt 0:00:09]} 27. f4 {[%emt 0:02:05]} Nc6 {[%emt 0:03:40]} 28. Rd1 {[%emt 0:04:36]} b5 {[%emt 0:01:10]} 29. cxb5 {[%emt 0:01:12]} axb5 {[%emt 0:00:06]} 30. Rc3 {[%emt 0:01:21]} Ne7 {[%emt 0:02:33]} 31. Nf3 {[%emt 0:02:04]} Ra7 {[%emt 0:02:34]} 32. Kb1 {[%emt 0:01:05]} Rda8 {[%emt 0:03:08]} 33. Rc2 {[%emt 0:00:58]} d5 {[%emt 0:00:48]} 34. Rd4 {[%emt 0:01:51]} Rb7 {[%emt 0:04:42]} 35. Rb4 {[%emt 0:00:39]} Rc8 {[%emt 0:00:35]} 36. Nd4 {[%emt 0:01:27]} Rxc2 {[%emt 0:00:38]} 37. Kxc2 {[%emt 0:00:10]} Rc7+ {[%emt 0:00:38]} 38. Kb2 {[%emt 0:00:25]} Nc6 {[%emt 0:36:55]} 39. Nxc6 Rxc6 40. Rxb5 Rf6 41. Rb4 Re6 {[%emt 0:00:00]} 42. a4 {[%emt 0:31:41]} Re2+ {[%emt 0:00:00]} 43. Ka3 {[%emt 0:00:30]} Ke7 {[%emt 0:00:00]} 44. a5 {[%emt 0:00:30]} Kd6 {[%emt 0:00:00]} 45. a6 {[%emt 0:00:30]} Re8 {[%emt 0:00:00]} 46. a7 {[%emt 0:00:30]} Ra8 {[%emt 0:00:00]} 47. Rb7 {[%emt 0:00:30]} 1-0

[Event "36th German Seniors-ch-65 2024"]
[Site "Bad Wildungen"]
[Date "2024.08.30"]
[Round "8.15"]
[White "Erler, Rainer"]
[Black "Larem, Ewald"]
[Result "1-0"]
[ECO "B20"]
[WhiteElo "2122"]
[BlackElo "1998"]
[Annotator "RC"]
[PlyCount "63"]
[EventDate "2024.08.22"]
[EventType "swiss"]
[EventCountry "GER"]
[SourceTitle "playchess.com"]
[Source "ChessBase"]
[SourceQuality "1"]
[TimeControl "40/5400+30:1800+30"]

1. e4 {[%emt 0:00:01]} e6 {[%emt 0:02:42]} 2. b3 {[%emt 0:00:04]} c5 {[%emt 0:00:57]} 3. Bb2 {[%emt 0:00:06]} Nc6 {[%emt 0:00:10]} 4. f4 {[%emt 0:00:57]} d5 {[%emt 0:04:26]} 5. e5 {[%emt 0:00:12]} Nh6 {[%emt 0:00:46]} 6. Nf3 {[%emt 0:01:50]} Be7 {[%emt 0:00:34]} 7. Bd3 {[%emt 0:05:44]} Qb6 {[%emt 0:03:56]} 8. c3 {[%emt 0:15:19]} Bd7 {[%emt 0:18:01]} 9. Qc2 {[%emt 0:03:33]} g6 {[%emt 0:02:16]} 10. Na3 {[%emt 0:03:50]} Rc8 {[%emt 0:05:38]} 11. Qc1 {[%emt 0:07:07]} a6 {[%emt 0:03:17]} 12. Nc2 {[%emt 0:07:02]} Qa7 {[%emt 0:12:04]} 13. Qd1 {[%emt 0:05:07]} b5 {[%emt 0:05:12]} 14. Be2 {[%emt 0:09:44]} O-O {[%emt 0:02:46]} 15. O-O {[%emt 0:08:10]} f6 {[%emt 0:02:07]} 16. d4 {[%emt 0:03:46]} cxd4 {[%emt 0:01:08]} 17. cxd4 {[%emt 0:02:03]} fxe5 {[%emt 0:00:59]} 18. fxe5 {[%emt 0:07:02]} Nf5 {[%emt 0:10:48]} 19. Kh1 {[%emt 0:04:48]} b4 {[%emt 0:00:21]} 20. Qd2 {[%emt 0:02:13]} Qb6 {[%emt 0:02:17]} 21. Ne3 {[%emt 0:01:55]} Na7 {[%emt 0:01:07]} 22. Nxf5 {[%emt 0:01:46]} Rxf5 {[%emt 0:00:22]} 23. Bd3 {[%emt 0:00:36]} Rf7 {[%emt 0:02:49]} 24. Ng5 {[%emt 0:01:28]} Rxf1+ {[%emt 0:02:14]} 25. Rxf1 {[%emt 0:00:01]} Bb5 {[%emt 0:00:34]} 26. Nf7 {[%emt 0:01:20]} Rf8 {[%emt 0:03:55]} 27. Nh6+ {[%emt 0:00:10]} Kg7 {[%emt 0:00:11]} 28. Rxf8 {[%emt 0:00:30]} Bxf8 {[%emt 0:06:17]} 29. Qf4 {[%emt 0:00:44]} Qd8 {[%emt 0:01:36]} 30. Qf7+ {[%emt 0:00:54]} Kxh6 {[%emt 0:00:19]} 31. Bc1+ {[%emt 0:00:03]} g5 {[%emt 0:00:15]} 32. Qxh7# {[%emt 0:08:25]} 1-0

[Event "36th German Seniors-ch-65 2024"]
[Site "Bad Wildungen"]
[Date "2024.08.30"]
[Round "8.16"]
[White "Ellenberg, Ekkehard"]
[Black "Kannenberg, Karl-Heinz"]
[Result "1/2-1/2"]
[ECO "B11"]
[WhiteElo "1998"]
[BlackElo "2121"]
[Annotator "RC"]
[PlyCount "77"]
[EventDate "2024.08.22"]
[EventType "swiss"]
[EventCountry "GER"]
[SourceTitle "playchess.com"]
[Source "ChessBase"]
[SourceQuality "1"]
[TimeControl "40/5400+30:1800+30"]

1. e4 {[%emt 0:00:09]} c6 {[%emt 0:00:09]} 2. Nc3 {[%emt 0:00:13]} d5 {[%emt 0:00:08]} 3. Nf3 {[%emt 0:00:10]} Bg4 {[%emt 0:02:04]} 4. Be2 {[%emt 0:02:03]} e6 {[%emt 0:00:09]} 5. d3 {[%emt 0:00:22]} Nf6 {[%emt 0:06:43]} 6. Nd2 {[%emt 0:01:20]} Bxe2 {[%emt 0:00:42]} 7. Qxe2 {[%emt 0:00:22]} Bb4 {[%emt 0:02:52]} 8. e5 {[%emt 0:04:35]} Nfd7 {[%emt 0:09:17]} 9. Qg4 {[%emt 0:03:28]} Bf8 {[%emt 0:01:37]} 10. f4 {[%emt 0:01:40]} g6 {[%emt 0:01:29]} 11. Qe2 {[%emt 0:01:21]} Qb6 {[%emt 0:03:16]} 12. Nf3 {[%emt 0:06:55]} Be7 {[%emt 0:05:30]} 13. Qf2 {[%emt 0:05:44]} Qxf2+ {[%emt 0:01:36]} 14. Kxf2 {[%emt 0:00:02]} a6 {[%emt 0:00:14]} 15. Ne2 {[%emt 0:04:08]} c5 {[%emt 0:02:16]} 16. c3 {[%emt 0:01:49]} Nc6 {[%emt 0:00:44]} 17. Bd2 {[%emt 0:01:01]} O-O {[%emt 0:01:55]} 18. Rac1 {[%emt 0:06:17]} Rfc8 {[%emt 0:02:38]} 19. Rc2 {[%emt 0:04:44]} b5 {[%emt 0:01:52]} 20. b3 {[%emt 0:04:56]} Rab8 {[%emt 0:15:50]} 21. Rb1 {[%emt 0:03:55]} a5 {[%emt 0:11:59]} 22. a3 {[%emt 0:08:11]} Nb6 {[%emt 0:08:15]} 23. Ra2 {[%emt 0:06:23]} Kg7 {[%emt 0:05:23]} 24. Re1 {[%emt 0:08:13]} a4 {[%emt 0:03:14]} 25. b4 {[%emt 0:01:18]} d4 {[%emt 0:02:02]} 26. bxc5 {[%emt 0:06:55]} dxc3 {[%emt 0:01:04]} 27. Nxc3 {[%emt 0:02:42]} Bxc5+ {[%emt 0:00:16]} 28. Ke2 {[%emt 0:01:46]} b4 {[%emt 0:01:47]} 29. axb4 {[%emt 0:04:24]} Nxb4 {[%emt 0:00:09]} 30. Rb2 {[%emt 0:00:24]} a3 {[%emt 0:02:31]} 31. Rb3 {[%emt 0:00:23]} N6d5 {[%emt 0:01:23]} 32. Ne4 {[%emt 0:01:49]} Be7 {[%emt 0:01:08]} 33. Nd6 {[%emt 0:00:25]} Rc2 {[%emt 0:00:13]} 34. Rxa3 {[%emt 0:01:52]} Nxf4+ {[%emt 0:00:56]} 35. Kd1 {[%emt 0:00:38]} Nfxd3 {[%emt 0:02:09]} 36. Rxd3 {[%emt 0:02:09]} Nxd3 {[%emt 0:00:16]} 37. Kxc2 {[%emt 0:00:10]} Nxe1+ {[%emt 0:00:12]} 38. Bxe1 {[%emt 0:00:11]} h6 {[%emt 0:02:40]} 39. Bc3 {[%emt 0:00:28]} 1/2-1/2